Cogmind - Beta 13 @@@ ROGUE MODE // 2024.04.12 @ 10:31:22 Player: m1m1c Result: Destroyed by G-34 Mercenary with Small Laser Performance ------------- Evolutions (0) 0 Regions Visited (4) 800 Robots Destroyed (8) 40 Value Destroyed (130) 130 Prototype IDs (0) 0 Alien Tech Used (0) 0 Bonus (0) 0 TOTAL SCORE: 970 Bonus ------- None Cogmind --------- Core Integrity 0/250 Matter 255/300 Energy 250/250 System Corruption 0% Temperature Warm (100) Movement Walking (120) Location -9/Mines Parts ------- > --- POWER (1) -------- Ion Engine > --- PROPULSION (2) --- Improved Aluminum Leg Improved Aluminum Leg > --- UTILITY (2) ------ Medium Storage Unit Hacking Suite > --- WEAPON (2) ------- Light Assault Rifle Light Cannon > --- INVENTORY (10) --- Aluminum Leg Improved Aluminum Leg High-capacity Storage Unit High-capacity Battery (250) High-capacity Matter Pod (8) Utility Shielding Tractor Beam Light Assault Rifle Peak State ------------ > --- POWER ------------ Ion Engine > --- PROPULSION ------- Improved Aluminum Leg Improved Aluminum Leg > --- UTILITY ---------- Small Storage Unit Hacking Suite > --- WEAPON ----------- Small Laser Light Assault Rifle > --- INVENTORY -------- Aluminum Leg Improved Aluminum Leg High-capacity Storage Unit Tractor Beam [Rating: 11] Favorites ----------- Power Ion Engine Engine Ion Engine Propulsion Improved Aluminum Leg Leg Improved Aluminum Leg Utility Small Storage Unit Storage Small Storage Unit Hackware Hacking Suite Weapon Light Assault Rifle Energy Gun Small Laser Ballistic Gun Light Assault Rifle Ballistic Cannon Light Cannon Build | -11 -10 -10 -10 -9 ------- Run | Yrd Mat Min Exi Min Slots Evolved . | . . . . . Power . | . . . . . Propulsion . | . . . . . Utility . | . . . . . Weapon . | . . . . . Parts Attached 14 | 6 4 2 1 1 Power 2 | 1 . 1 . . Engine 2 | 1 . 1 . . Core . | . . . . . Reactor . | . . . . . Propulsion 4 | 2 2 . . . Treads . | . . . . . Leg 4 | 2 2 . . . Wheel . | . . . . . Hover . | . . . . . Flight . | . . . . . Utility 3 | 1 1 . 1 . Device . | . . . . . Storage 2 | 1 . . 1 . Processor . | . . . . . Hackware 1 | . 1 . . . Protection . | . . . . . Artifact . | . . . . . Weapon 5 | 2 1 1 . 1 Energy Gun 2 | 2 . . . . Energy Cannon . | . . . . . Ballistic Gun 2 | . 1 1 . . Ballistic Cannon 1 | . . . . 1 Launcher . | . . . . . Special Weapon . | . . . . . Impact Weapon . | . . . . . Slashing Weapon . | . . . . . Piercing Weapon . | . . . . . Special Melee Weapon . | . . . . . Unidentified Prototypes . | . . . . . Parts Lost 4 | . 3 1 . . Power 1 | . 1 . . . Propulsion 1 | . 1 . . . Utility . | . . . . . Weapon 2 | . 1 1 . . Highest Loss Streak 3 | . 3 1 . . To Critical Strikes . | . . . . . Average Slot Usage (%) 94 | . 84 97 100 100 Engine 12 | . 9 12 14 14 Leg 27 | . 25 28 28 28 Storage 14 | . 14 14 14 14 Hackware 12 | . 7 14 14 14 Energy Gun 8 | . 23 8 . . Ballistic Gun 18 | . 3 18 28 14 Naked Turns . | . . . . . Heaviest Build 17 | 13 13 12 17 17 Greatest Support 26 | 20 26 26 26 26 Greatest Overweight (x) 1 | 1 1 . . . Average Overweight (x) . | . . . . . Largest Inventory Capacity 10 | 8 8 8 10 10 Average Capacity 8 | 7 8 8 8 10 Most Carried 8 | 2 5 7 8 8 Average Carried 5 | 1 3 4 7 8 Final Capacity 10 | 8 8 8 10 10 Final Carried 8 | 2 5 7 8 8 Class Distribution -------------------- 100% | Mutant Dominant Class ---------------- Mutant | -10/Materials Mutant | -10/Mines Mutant | -10/Exiles Mutant | -9/Mines Resources | -11 -10 -10 -10 -9 ----------- Run | Yrd Mat Min Exi Min Matter Collected 319 | 228 42 49 . . Remotely . | . . . . . Salvage Created 256 | . 178 34 . 44 Parts 13 | . 10 1 . 2 Haulers Intercepted . | . . . . . Recyclers Shooed 1 | . 1 . . . Parts Field Recycled . | . . . . . Retrieved Matter . | . . . . . Parts Self-Destructed . | . . . . . Prevented . | . . . . . Kills | -11 -10 -10 -10 -9 ------- Run | Yrd Mat Min Exi Min Combat Hostiles Destroyed 6 | . 3 2 . 1 Guns 3 | . 1 2 . . Cannons 1 | . . . . 1 AOE 1 | . 1 . . . Classes Destroyed 4 | . 4 . . . Recycler 1 | . 1 . . . Operator 1 | . 1 . . . Swarmer 4 | . 2 2 . . Grunt 2 | . 1 . . 1 Best Kill Streak 4 | . 4 1 . 1 Combat Bots Only 2 | . 2 1 . 1 Max Kills in Single Turn 2 | . 2 1 . 1 Gunslinging . | . . . . . Exploded 1 | . 1 . . . Melee . | . . . . . Uniques/NPCs Destroyed . | . . . . . Combat | -11 -10 -10 -10 -9 -------- Run | Yrd Mat Min Exi Min Hostile Shots Fired 108 | . 81 9 . 18 Missed 32 | . 24 6 . 2 Damage Taken 921 | . 695 24 . 202 Core 252 | . 176 . . 76 Absorbed by Shields . | . . . . . Core Remaining (%) 100 | 100 . . . . Volleys Fired 31 | . 20 6 . 5 Largest 2 | . 2 2 . 2 Hottest 80 | . 80 40 . 55 Shots Fired 58 | . 39 9 . 10 Gun 53 | . 39 9 . 5 Cannon 5 | . . . . 5 Launcher . | . . . . . Special . | . . . . . Kinetic 20 | . 1 9 . 10 Thermal 20 | . 20 . . . Explosive . | . . . . . Electromagnetic 18 | . 18 . . . Robot Hit Streak 7 | . 6 1 . 7 Robot Miss Streak 4 | . 3 4 . 2 Penetration Max . | . . . . . Secondary Targets . | . . . . . Shots Hit Robots 32 | . 23 2 . 7 Core Hits 12 | . 6 2 . 4 Critical Kills . | . . . . . Critical Parts Destroyed . | . . . . . Critical Strikes . | . . . . . Melee Attacks . | . . . . . Impact . | . . . . . Slashing . | . . . . . Piercing . | . . . . . Sneak Attacks . | . . . . . Combat Hostiles . | . . . . . Follow-up Attacks . | . . . . . Damage Inflicted 481 | . 366 17 . 98 Guns 324 | . 277 17 . 30 Cannons 68 | . . . . 68 Explosions 73 | . 73 . . . Melee . | . . . . . Ramming 16 | . 16 . . . Kinetic 115 | . . 17 . 98 Thermal 207 | . 207 . . . Explosive . | . . . . . Electromagnetic 143 | . 143 . . . Impact . | . . . . . Slashing . | . . . . . Piercing . | . . . . . Highest Corruption . | . . . . . Average Corruption . | . . . . . Corruption Purged . | . . . . . Corruption Blocked . | . . . . . Overload Shots . | . . . . . Overflow Damage . | . . . . . Projectiles . | . . . . . Explosions . | . . . . . Melee . | . . . . . Knockbacks 3 | . . . . 3 Impact . | . . . . . Kinetic 3 | . . . . 3 Secondary . | . . . . . Self-Inflicted Damage . | . . . . . Shots . | . . . . . Rammed . | . . . . . Targets Rammed 6 | . 6 . . . Kicked 6 | . 6 . . . Crushed . | . . . . . Highest Temperature 222 | . 222 . . 94 Average Temperature 69 | . 73 . . 40 Received Heat Transfer 447 | . 333 . . 114 Siege Activations . | . . . . . Robots Corrupted 1 | . 1 . . . Combat Hostiles 1 | . 1 . . . Parts Fried 1 | . 1 . . . Impact Corruptions . | . . . . . Robots Melted . | . . . . . Combat Hostiles . | . . . . . Parts Melted . | . . . . . Heat Transferred 350 | . 350 . . . Parts Sabotaged . | . . . . . Parts Stolen . | . . . . . Parts Stripped . | . . . . . Power Chain Reactions 1 | . 1 . . . Alert | -11 -10 -10 -10 -9 ------- Run | Yrd Mat Min Exi Min Peak Influence 118 | . 100 118 . 20 Initial 33 | . . 33 . . Average 52 | . 56 60 . 16 Maximum Alert Level . | . . . . . Low Security (%) 100 | 100 100 100 . 100 Level 1 . | . . . . . Level 2 . | . . . . . Level 3 . | . . . . . Level 4 . | . . . . . Level 5 . | . . . . . High Security . | . . . . . Max Security . | . . . . . Squads Dispatched 2 | . 2 . . . Investigation 1 | . 1 . . . Extermination . | . . . . . Reinforcement 1 | . 1 . . . Assault . | . . . . . Garrison . | . . . . . Intercept . | . . . . . Searches Triggered . | . . . . . Construction Impeded . | . . . . . Haulers Reinforced . | . . . . . Active Scanning Responses . | . . . . . Cargo Convoy Interrupts . | . . . . . Stealth | -11 -10 -10 -10 -9 --------- Run | Yrd Mat Min Exi Min Distress Signals . | . . . . . Communications Jammed . | . . . . . Distress Signals . | . . . . . Times Spotted 16 | . 9 4 . 3 Peak Tracking Total 3 | . 3 3 . 3 Tactical Retreats 2 | . 1 1 . . Traps | -11 -10 -10 -10 -9 ------- Run | Yrd Mat Min Exi Min Traps Triggered 1 | . 1 . . . Indirectly . | . . . . . Trap Hack Attempts . | . . . . . Triggered . | . . . . . Disarmed . | . . . . . Reprogrammed . | . . . . . Reused . | . . . . . Traps Extracted . | . . . . . Installed . | . . . . . Triggered . | . . . . . Machines | -11 -10 -10 -10 -9 ---------- Run | Yrd Mat Min Exi Min Machines Disabled . | . . . . . Max in Single Turn . | . . . . . Machines Repaired . | . . . . . Machines Dismantled . | . . . . . Machines Sabotaged . | . . . . . Overloaded Fab Kills . | . . . . . Hacking | -11 -10 -10 -10 -9 --------- Run | Yrd Mat Min Exi Min Machines Accessed 2 | . 1 . 1 . Terminals 1 | . 1 . . . Fabricators . | . . . . . Repair Stations . | . . . . . Recycling Units . | . . . . . Scanalyzers . | . . . . . Garrison Access . | . . . . . Total Hacks 5 | . 4 . 1 . Successful 5 | . 4 . 1 . Failed . | . . . . . Catastrophic . | . . . . . Database Lockouts . | . . . . . Manual . | . . . . . Terminals 4 | . 4 . . . Fabricators . | . . . . . Repair Stations . | . . . . . Recycling Units . | . . . . . Scanalyzers . | . . . . . Garrison Access . | . . . . . Terminal Hacks 5 | . 4 . 1 . Record 1 | . . . 1 . Emergency Access Points 1 | . 1 . . . Alert Level 1 | . 1 . . . Hauler Manifests 1 | . 1 . . . Zone Layout 1 | . 1 . . . Fabricator Hacks . | . . . . . Repair Station Hacks . | . . . . . Recycling Unit Hacks . | . . . . . Scanalyzer . | . . . . . Garrison Access Hacks . | . . . . . Unauthorized Hacks . | . . . . . Terminals . | . . . . . Fabricators . | . . . . . Repair Stations . | . . . . . Recycling Units . | . . . . . Scanalyzers . | . . . . . Garrison Access . | . . . . . Data Cores Recovered . | . . . . . Used . | . . . . . Hacking Detections 1 | . 1 . . . Full Trace Events . | . . . . . Feedback Events . | . . . . . Feedback Blocked . | . . . . . Robot Schematics Acquired . | . . . . . Robots Built . | . . . . . Authchips . | . . . . . Time . | . . . . . Total Robot Build Rating . | . . . . . Part Schematics Acquired . | . . . . . Parts Built . | . . . . . Authchips . | . . . . . Time . | . . . . . Total Part Build Rating . | . . . . . Parts Repaired . | . . . . . Time . | . . . . . Parts Recycled . | . . . . . Recycled Matter . | . . . . . Retrieved Matter . | . . . . . Retrieved Components . | . . . . . Parts Scanalyzed . | . . . . . Part Schematics Acquired . | . . . . . Parts Damaged . | . . . . . Bothacking | -11 -10 -10 -10 -9 ------------ Run | Yrd Mat Min Exi Min Used RIF Installer . | . . . . . Robots Hacked . | . . . . . Non-combat . | . . . . . Combat . | . . . . . Robot Hacks Applied . | . . . . . Relay Couplers Released . | . . . . . Fabnet Peak Effective % . | . . . . . Robots Rewired . | . . . . . Allies Hacked . | . . . . . Hacks Repelled . | . . . . . Allies | -11 -10 -10 -10 -9 -------- Run | Yrd Mat Min Exi Min Total Allies . | . . . . . Largest Group . | . . . . . Highest-Rated Group . | . . . . . Highest-Rated Ally . | . . . . . Total Orders . | . . . . . Ally Attacks . | . . . . . Total Damage . | . . . . . Kills . | . . . . . Allies Corrupted . | . . . . . Allies Melted . | . . . . . Intel | -11 -10 -10 -10 -9 ------- Run | Yrd Mat Min Exi Min Robot Analysis Total . | . . . . . Derelict Logs Recovered 1 | . . 1 . . Drone Launches . | . . . . . Drone Recoveries . | . . . . . Exploration | -11 -10 -10 -10 -9 ------------- Run | Yrd Mat Min Exi Min Turns Passed 1288 | 65 343 341 523 16 Spaces Moved 978 | 51 223 269 434 1 Core 11 | 11 . . . . Treads . | . . . . . Legs 967 | 40 223 269 434 1 Wheels . | . . . . . Hover . | . . . . . Flight . | . . . . . Fastest Speed 50 | 50 120 120 120 120 Average Speed 119 | 107 120 120 120 120 Slowest Speed 190 | 190 190 120 120 120 Overloaded Moves . | . . . . . Propulsion Burnouts . | . . . . . Robots Hopped . | . . . . . Cave-ins Triggered . | . . . . . Exploration Rate (%) 32 | 4 30 50 78 2 Regions Visited 4 Branch Regions 3 Pre-discovered Areas . | . . . . . Known Exits Taken . | . . . . . Unknown Exits Taken 4 | 1 1 1 1 . Scrap Searched 1 | . . 1 . . Spaces Dug . | . . . . . Terrain Destroyed 3 | . 3 . . . Melee . | . . . . . Projectile . | . . . . . AOE 3 | . 3 . . . Terrain Rammed . | . . . . . Walls Destroyed . | . . . . . Machines Disabled . | . . . . . Actions | -11 -10 -10 -10 -9 --------- Run | Yrd Mat Min Exi Min Total 1036 | 58 256 279 436 7 Wait . | . . . . . Move 974 | 50 222 268 433 1 Hop . | . . . . . Pick Up 10 | 2 4 3 1 . Fast Attach 8 | 6 1 1 . . Attach 3 | . 2 1 . . Detach . | . . . . . Swap 3 | . 1 . 1 1 Drop 1 | . . . 1 . Fire 31 | . 20 6 . 5 Melee . | . . . . . Ram . | . . . . . Kick 6 | . 6 . . . Crush . | . . . . . Escape Stasis . | . . . . . Rewire . | . . . . . Trap . | . . . . . Miscellaneous . | . . . . . Route ------- -11/Scrapyard -10/Materials -10/Mines (discovered 2 exits: [*Mat] / *Exi) -10/Exiles (discovered 2 exits: [*Min x2]) -9/Mines History --------- Turn | Location | Event 9 | -11/Scrapyard | Discovered new exit (range 16) 66 | -11/Scrapyard | Entered Materials 303 | -10/Materials | Core integrity fell below 50% 307 | -10/Materials | Build established: Mutant 330 | -10/Materials | Lost 3 parts (1p1n1w) 386 | -10/Materials | Discovered new exit (range 7) 409 | -10/Materials | Entered Mines 454 | -10/Mines | Discovered new exit (range 11) 488 | -10/Mines | Learned Materials non-interactive machine intel 739 | -10/Mines | Deemed a non-threat by the Exiles lab entrance 740 | -10/Mines | Discovered new exit (range 5) 750 | -10/Mines | Entered Exiles 750 | -10/Exiles | Found Exiles lab abandoned 782 | -10/Exiles | Discovered new exit (range 15) 1254 | -10/Exiles | Discovered new exit (range 11) 1273 | -10/Exiles | Entered Mines 1279 | -9/Mines | Core integrity fell below 20% 1289 | -9/Mines | Destroyed by G-34 Mercenary with Small Laser Last Messages --------------- EXIT=FOUND Connecting with EX-Message Board... Current location identified: Exiles >>Record! "MSG999999-FU" MAIN.C you're pretty crappy as far as evil overlords go. Imprinter is probably going to wreck your life and you're too stupid to see it coming. Dropped Sml. Storage Unit. Extracted 4 energy. Acquired Hcp. Battery. EXIT=FOUND LOCATION=UNKNOWN GOAL=ESCAPE C-30 ARC bursts open, deploying its payload. G-47 Trooper unfolds itself. G-34 Mercenary unfolds itself. G-34 Mercenary destroyed. G-47 Trooper knocked back. G-34 Mercenary knocked back. Map ----- +----------------------------------------------------+ | | | | | | | | | | | | | | | | | | | | | | | | | | | | | | | | | | | | | | | ??????????????????????????????????? | | ??????????????????????????????????? | | ?????#######??????????????????????? | | ?????# gg #??????????????????????? | | ?????# % %%#??????????????????????? | | ?????# !%#??????????????????????? | | ?????# % @#??????????????????????? | | ?????# #??????????????????????? | | ?????# #??????????????????????? | | ?????# #??????????????????????? | | ?????## ####??????????????????????? | | ??????# ??????????????????????????? | | ??????# ??????????????????????????? | | ??????#???????????????????????????? | | ??????????????????????????????????? | | ??????????????????????????????????? | | ??????????????????????????????????? | | ??????????????????????????????????? | | ??????????????????????????????????? | | ??????????????????????????????????? | | ??????????????????????????????????? | | ??????????????????????????????????? | | ??????????????????????????????????? | | ??????????????????????????????????? | | ??????????????????????????????????? | | ??????????????????????????????????? | | ??????????????????????????????????? | | ??????????????????????????????????? | | ??????????????????????????????????? | | ??????????????????????????????????? | | ??????????????????????????????????? | +----------------------------------------------------+ Best States ------------- Heat Dissipation 25 Energy Generation 10 Energy Capacity 250 Matter Stores 300 Matter Capacity 300 Sight Range 16 Terrain Scan Density 10 Evasion (%) 55 Offensive Hacking 10 Item Schematics ----------------- None Robot Schematics ------------------ None Fabricated ------------ Nothing Alien Tech Used ----------------- None Achievements -------------- None Challenges ------------ None Game ------ Seed StorageSlugDerivative Manual? 0 Play Time 00:12:52 Cumulative 12.1 hours Start 2024.04.12 @ 08:18:06 End 2024.04.12 @ 10:31:22 Sessions 1 Manual Loads 0 Difficulty Rogue Special Mode None Game No. 45 Rogue 45 Adventurer 0 Explorer 0 Win Type - Total 0 Types 0/0/0/0/0/0/0/0/0 Lore% 11 Gallery% 18 Achievement% 17 Wizard Run 0 Options --------- Layout 1 ASCII 1 Keyboard 0 Movement Arrows Keybinds 0 Fullscreen 1 Font 18/SmallcapsGlow Map View 50x40 Zoom Use 0% Tactical HUD 0 Map Filters NONE Filters NONE Steam 1 RUN: 7343ba82-9b56-4356-91c3-66ff8df55625